Workbook

Sheet Cover Sheet
B1: Registered User: | G1: Free Trial Version - Not For Commercial Use | AF1: © 2017 CivilWeb
B2: Your Logo / Company Details Here | G2: Project: | AF2: By:
G3: Calculation: | M3: Manning Formula - Flow in Open Channel
AF4: Approved:
G5: Sheet Number: | M5: Cover Sheet | T5: Date:
H7: Although all care and attention has been taken to ensure that this program is accurate, CivilWeb gives no guarentee that it is error free. In no event will Civil Web accept any responsibility for any errors or omissions from the program or from the user of the program, or for any special, incedental or consequential damages whatsoever arising from use of this program.
H14: This program should only be used by a suitably qualified Civil or Structural Engineer, and suitable efforts should be taken to verify the results.
H18: Reverse-engineering or decompiling of this program is not allowed.
H20: This program is registered to a single user, and should not be used by any other.
H23: Registered User;
H26: By using this program you confirm your understanding and agreement with the above terms and conditions.
H29: This program remains the property of CivilWeb.
H30: www.civilweb-spreadsheets.com
H32: Revision Schedule
H34: Rev | J34: Changes | Z34: Date
H35: 0 | J35: Original | Z35: 2017-04-18

Sheet Manning Open Channel Flow
B1: Registered User: | G1: Free Trial Version - Not For Commercial Use | AF1: © 2017 CivilWeb
B2: Your Logo / Company Details Here | G2: Project: | AF2: By: | CC2: Type of Channel | CD2: Triangular Cross Section | CI2: Flow Area | CJ2: Wetted Perimeter
G3: Calculation: | M3: Manning Formula - Flow in Open Channel | BO3: Trap | BP3: x | BQ3: 0 | BR3: =O11*AI12 -> 2 | BS3: =BR3+O10 -> 5 | BT3: =BS3+BR3 -> 7 | BU3: =BT3 -> 7 | BV3: =BU3 -> 7 | BW3: 7 | BX3: 7 | BY3: 7 | BZ3: 7 | CA3: 7 | CB3: =BQ3 -> 0 | CH3: Trapezoidal | CI3: =O10*O11+AI12*O11^2 -> 10 | CJ3: =O10+2*O11*SQRT(AI12^2+1) -> 8.656854249
AF4: Approved: | BP4: y | BQ4: =O11 -> 2 | BR4: 0 | BS4: 0 | BT4: =BQ4 -> 2 | BU4: =BT4 -> 2 | BV4: =BU4 -> 2 | BW4: 2 | BX4: 2 | BY4: 2 | BZ4: 2 | CA4: 2 | CB4: =BQ4 -> 2 | CC4: Dimensions | CH4: Triangular | CI4: =AI12*O11^2 -> 4 | CJ4: =2*O11*SQRT(AI12^2+1) -> 5.656854249
G5: Sheet Number: | M5: 1 | T5: Date: | CC5: Width | CD5: 2 | CE5: m | CH5: Parabolic | CI5: =2/3*O10*O11 -> 4 | CJ5: =O10+8*O11^2/(3*O10) -> 6.555555556
BO6: Tri | BP6: x | BQ6: 0 | BR6: =O11*AI12 -> 2 | BS6: =BR6*2 -> 4 | BT6: =BS6 -> 4 | BU6: =BT6 -> 4 | BV6: 4 | BW6: 4 | BX6: 4 | BY6: 4 | BZ6: 4 | CA6: 4 | CB6: =BQ6 -> 0 | CC6: Depth | CD6: 3 | CE6: m | CH6: Rectangular | CI6: =O10*O11 -> 6 | CJ6: =O10+O11*2 -> 7
H7: Shape of Channel | O7: Trapezoidal | BP7: y | BQ7: =O11 -> 2 | BR7: 0 | BS7: =O11 -> 2 | BT7: =BS7 -> 2 | BU7: =BT7 -> 2 | BV7: 2 | BW7: 2 | BX7: 2 | BY7: 2 | BZ7: 2 | CA7: 2 | CB7: =BQ7 -> 2 | CC7: Side Slope (only required for Trapezoid | CD7: 2 | CE7: 1 in ? | CF7: =45*O12% -> 45
CC8: Coeff surface roughness | CD8: 0.014
H9: Dimensions | BO9: para | BP9: x | BQ9: 0 | BR9: =BV9/5 -> 0.3 | BS9: =$BV$9*2/5 -> 0.6 | BT9: =$BV$9*3/5 -> 0.9 | BU9: =$BV$9*4/5 -> 1.2 | BV9: =O10/2 -> 1.5 | BW9: =$BV9+$CA9*0.5*1/5 -> 1.8 | BX9: =$BV9+$CA9*0.5*2/5 -> 2.1 | BY9: =$BV9+$CA9*0.5*3/5 -> 2.4 | BZ9: =$BV9+$CA9*0.5*4/5 -> 2.7 | CA9: =O10 -> 3 | CB9: =BQ9 -> 0 | CC9: Slope | CD9: 0.01 | CE9: m/m
H10: Width (W) | O10: 3 | R10: m | BP10: y | BQ10: =O11 -> 2 | BR10: =BQ10/2 -> 1 | BS10: =BQ10/4 -> 0.5 | BT10: =BQ10/8 -> 0.25 | BU10: =BQ10/16 -> 0.125 | BV10: 0 | BW10: =BU10 -> 0.125 | BX10: =BT10 -> 0.25 | BY10: =BS10 -> 0.5 | BZ10: =BR10 -> 1 | CA10: =O11 -> 2 | CB10: =BQ10 -> 2
H11: Depth (D) | O11: 2 | R11: m | AF11: =IF(H12="Not Applicable","","=") -> = | AG11: =IF(H12="Not Applicable","",O12/100) -> 1 | AI11: =IF(H12="Not Applicable","","m/m") -> m/m
H12: =IF(OR(O7="Trapezoidal",O7="Triangular"),"Side Slopes (G)","Not Applicable") -> Side Slopes (G) | O12: 100 | R12: % | AF12: =IF(H12="Not Applicable","","or 1 in") -> or 1 in | AI12: =IF(H12="Not Applicable","",100/O12) -> 1 | BO12: Rec | BP12: x | BQ12: 0 | BR12: 0 | BS12: =O10 -> 3 | BT12: =O10 -> 3 | BU12: =BT12 -> 3 | BV12: =BU12 -> 3 | BW12: 3 | BX12: 3 | BY12: 3 | BZ12: 3 | CA12: 3 | CB12: =BQ12 -> 0 | CC12: Flow Area | CD12: =VLOOKUP(O7,CH3:CJ6,2,FALSE) -> 10 | CE12: m2
BP13: y | BQ13: =O11 -> 2 | BR13: 0 | BS13: 0 | BT13: =O11 -> 2 | BU13: =BT13 -> 2 | BV13: =BU13 -> 2 | BW13: 2 | BX13: 2 | BY13: 2 | BZ13: 2 | CA13: 2 | CB13: =BQ13 -> 2 | CC13: Wetted Perimeter | CD13: =VLOOKUP(O7,CH3:CJ6,3,FALSE) -> 8.656854249 | CE13: m
H14: Hydraulic Gradient (S) | T14: 1 | W14: % | AF14: = | AG14: =T14/100 -> 0.01 | AI14: m/m | CG14: 2 | CH14: 3
H15: Roughness Coefficient (n) | T15: 0.014 | AF15: or 1 in | AI15: =100/T14 -> 100 | BO15: master | BP15: x | BQ15: =IF($O$7="Trapezoidal",BQ3,IF($O$7="Triangular",BQ6,IF($O$7="Parabolic",BQ9,BQ12))) -> 0 | BR15: =IF($O$7="Trapezoidal",BR3,IF($O$7="Triangular",BR6,IF($O$7="Parabolic",BR9,BR12))) -> 2 | BS15: 5 | BT15: 7 | BU15: 7 | BV15: 7 | BW15: 7 | BX15: 7 | BY15: 7 | BZ15: 7 | CA15: 7 | CB15: =MAX(BQ15:CA15)&"m" -> 7m | CG15: =0.5*CG14*CH14+0.5*CG14*CH14 -> 6
BP16: y | BQ16: =IF($O$7="Trapezoidal",BQ4,IF($O$7="Triangular",BQ7,IF($O$7="Parabolic",BQ10,BQ13))) -> 2 | BR16: =IF($O$7="Trapezoidal",BR4,IF($O$7="Triangular",BR7,IF($O$7="Parabolic",BR10,BR13))) -> 0 | BS16: 0 | BT16: 2 | BU16: 2 | BV16: 2 | BW16: 2 | BX16: 2 | BY16: 2 | BZ16: 2 | CA16: 2 | CB16: =MAX(BQ16:CA16)&"m" -> 2m
BQ18: =BQ15 -> 0 | BR18: =CA15 -> 7
BQ19: =BQ16 -> 2 | BR19: =CA16 -> 2
BQ21: =IF(MAX($BQ$15:$CA$16)>5,BQ15*(5/MAX($BQ$15:$CA$16)),BQ15) -> 0 | BR21: =IF(MAX($BQ$15:$CA$16)>5,BR15*(5/MAX($BQ$15:$CA$16)),BR15) -> 1.428571429 | BS21: 3.571428571 | BT21: 5 | BU21: 5 | BV21: 5 | BW21: 5 | BX21: 5 | BY21: 5 | BZ21: 5 | CA21: 5
H22: Results | BQ22: =IF(MAX($BQ$15:$CA$16)>5,BQ16*(5/MAX($BQ$15:$CA$16)),BQ16) -> 1.428571429 | BR22: 0 | BS22: 0 | BT22: 1.428571429 | BU22: 1.428571429 | BV22: 1.428571429 | BW22: 1.428571429 | BX22: 1.428571429 | BY22: 1.428571429 | BZ22: 1.428571429 | CA22: 1.428571429
H23: Velocity (v) | R23: =(1/$T$15)*(($CD$12/$CD$13)^(2/3))*($AG$14^(1/2)) -> 7.863789758 | V23: m/s
H24: Flow (Q) | R24: =R23*CD12*1000 -> 78637.89758 | V24: l/s | AF24: = | AG24: =R24/1000 -> 78.63789758 | AI24: m³/s | BQ24: =IF(MAX($BQ$21:$CA$21)=5,BQ21,BQ21+0.5*(5-MAX($BQ$21:$CA$21))) -> 0 | BR24: =IF(MAX($BQ$21:$CA$21)=5,BR21,BR21+0.5*(5-MAX($BQ$21:$CA$21))) -> 1.428571429 | BS24: 3.571428571 | BT24: 5 | BU24: 5 | BV24: 5 | BW24: 5 | BX24: 5 | BY24: 5 | BZ24: 5 | CA24: 5
BQ25: =IF(MAX($BQ$22:$CA$22)=5,BQ22,BQ22+0.5*(5-MAX($BQ$22:$CA$22))) -> 3.214285714 | BR25: =IF(MAX($BQ$22:$CA$22)=5,BR22,BR22+0.5*(5-MAX($BQ$22:$CA$22))) -> 1.785714286 | BS25: 1.785714286 | BT25: 3.214285714 | BU25: 3.214285714 | BV25: 3.214285714 | BW25: 3.214285714 | BX25: 3.214285714 | BY25: 3.214285714 | BZ25: 3.214285714 | CA25: 3.214285714
BQ27: =BQ24 -> 0 | BR27: =CA24 -> 5 | BT27: =MIN(BQ24:CA24) -> 0 | BU27: =MAX(BQ24:CA24) -> 5 | BW27: =MAX(BQ24:CA24)+0.4 -> 5.4 | BX27: =MAX(BQ24:CA24)+0.4 -> 5.4 | CA27: =0.5*(BU27-BT27)+BT27 -> 2.5 | CB27: =0.5*(BX27-BW27)+BW27 -> 5.4
BQ28: =BQ25 -> 3.214285714 | BR28: =CA25 -> 3.214285714 | BT28: =MAX(BQ25:CA25)+0.4 -> 3.614285714 | BU28: =MAX(BQ25:CA25)+0.4 -> 3.614285714 | BW28: =MIN(BQ25:CA25) -> 1.785714286 | BX28: =MAX(BQ25:CA25) -> 3.214285714 | CA28: =0.5*(BU28-BT28)+BT28 -> 3.614285714 | CB28: =0.5*(BX28-BW28)+BW28 -> 2.5
BR31: Trapezoidal | BS31: Triangular | BT31: Parabolic | BU31: Rectangular | BV31: chosen | BX31: =T14 -> 1 | BY31: 0
BP32: 1 | BQ32: 0.01 | BR32: =(1/$T$15)*(($CI$3/$CJ$3)^(2/3))*(($BQ32/100)^(1/2))*$CI$3*1000 -> 7863.789758 | BS32: =(1/$T$15)*(($CI$4/$CJ$4)^(2/3))*(($BQ32/100)^(1/2))*$CI$4*1000 -> 2267.715789 | BT32: =(1/$T$15)*(($CI$5/$CJ$5)^(2/3))*(($BQ32/100)^(1/2))*$CI$5*1000 -> 2055.412287 | BU32: =(1/$T$15)*(($CI$6/$CJ$6)^(2/3))*(($BQ32/100)^(1/2))*$CI$6*1000 -> 3867.158937 | BV32: =HLOOKUP($O$7,$BR$31:$BU$52,BP33,FALSE) -> 7863.789758 | BX32: =BX31 -> 1 | BY32: =R24 -> 78637.89758
BP33: 2 | BQ33: 0.05 | BR33: 17583.96846 | BS33: 5070.766657 | BT33: 4596.041596 | BU33: 8647.230264 | BV33: 17583.96846 | BX33: 0 | BY33: =BY32 -> 78637.89758
BP34: 3 | BQ34: 0.1 | BR34: 24867.48668 | BS34: 7171.146978 | BT34: 6499.784358 | BU34: 12229.03032 | BV34: 24867.48668
BP35: 4 | BQ35: 0.2 | BR35: 35167.93692 | BS35: 10141.53331 | BT35: 9192.083192 | BU35: 17294.46053 | BV35: 35167.93692
BP36: 5 | BQ36: 0.3 | BR36: 43071.75038 | BS36: 12420.79091 | BT36: 11257.95675 | BU36: 21181.30183 | BV36: 43071.75038
BP37: 6 | BQ37: 0.4 | BR37: 49734.97335 | BS37: 14342.29396 | BT37: 12999.56872 | BU37: 24458.06063 | BV37: 49734.97335
BP38: 7 | BQ38: 0.5 | BR38: 55605.39064 | BS38: 16035.17212 | BT38: 14533.95966 | BU38: 27344.94309 | BV38: 55605.39064
BP39: 8 | BQ39: 0.6 | BR39: 60912.65354 | BS39: 17565.65097 | BT39: 15921.15512 | BU39: 29954.88432 | BV39: 60912.65354
BP40: 9 | BQ40: 0.7 | BR40: 65793.18548 | BS40: 18973.07152 | BT40: 17196.81299 | BU40: 32354.97299 | BV40: 65793.18548
BP41: 10 | BQ41: 0.8 | BR41: 70335.87384 | BS41: 20283.06663 | BT41: 18384.16638 | BU41: 34588.92105 | BV41: 70335.87384
BP42: 11 | BQ42: 0.9 | BR42: 74602.46003 | BS42: 21513.44093 | BT42: 19499.35307 | BU42: 36687.09095 | BV42: 74602.46003
BP43: 12 | BQ43: 1 | BR43: 78637.89758 | BS43: 22677.15789 | BT43: 20554.12287 | BU43: 38671.58937 | BV43: 78637.89758
BP44: 13 | BQ44: 2 | BR44: 111210.7813 | BS44: 32070.34424 | BT44: 29067.91933 | BU44: 54689.88617 | BV44: 111210.7813
BP45: 14 | BQ45: 3 | BR45: 136204.834 | BS45: 39277.98963 | BT45: 35600.78512 | BU45: 66981.1576 | BV45: 136204.834
BP46: 15 | BQ46: 4 | BR46: 157275.7952 | BS46: 45354.31577 | BT46: 41108.24574 | BU46: 77343.17875 | BV46: 157275.7952
BP47: 16 | BQ47: 5 | BR47: 175839.6846 | BS47: 50707.66657 | BT47: 45960.41596 | BU47: 86472.30264 | BV47: 175839.6846
BP48: 17 | BQ48: 6 | BR48: 192622.7235 | BS48: 55547.46564 | BT48: 50347.11315 | BU48: 94725.66151 | BV48: 192622.7235
BP49: 18 | BQ49: 7 | BR49: 208056.3206 | BS49: 59998.12021 | BT49: 54381.09754 | BU49: 102315.4083 | BV49: 208056.3206
BP50: 19 | BQ50: 8 | BR50: 222421.5625 | BS50: 64140.68847 | BT50: 58135.83866 | BU50: 109379.7723 | BV50: 222421.5625
BP51: 20 | BQ51: 9 | BR51: 235913.6927 | BS51: 68031.47366 | BT51: 61662.36862 | BU51: 116014.7681 | BV51: 235913.6927
BP52: 21 | BQ52: 10 | BR52: 248674.8668 | BS52: 71711.46978 | BT52: 64997.84358 | BU52: 122290.3032 | BV52: 248674.8668
BP53: 22
